bitfinex-derivatives/quotes_ETHF0:USTF0_20250626
["timestamp","ask_amount","ask_price","bid_price","bid_amount"]
[1750929135791,1.85899236,2478.5,2478.4,2.15193]
[1750929135981,0.80653,2478.4,2478.3,7.98354]
[1750929136183,4.01432,2478.5,2478.4,0.80653]
[1750929136381,5.06639339,2478.5,2478.4,0.80653]
[1750929137489,0.80653,2478.4,2478.3,7.98353]
[1750929137793,1.85860339,2478.4,2478.3,7.177]
[1750929138301,1.85860339,2478.4,2478.3,7.98356]
[1750929138593,1.85860339,2478.4,2478.3,0.80656]
[1750929138892,0.80659,2478.3,2478.2,0.80657]
[1750929139095,1.85866339,2478.3,2478.2,0.80657]
[1750929139394,0.80662,2478.2,2478.1,0.80661]
[1750929140498,0.80659,2478.3,2478.2,0.80657]
[1750929140688,3.2078,2478.5,2478.0,1.417]
[1750929140689,0.80663,2478.2,2478.1,0.80661]
[1750929140890,0.80669,2478.0,2477.9,0.80667]
[1750929141095,0.80675,2477.8,2477.7,0.80673]
[1750929141290,4.01451,2477.9,2477.8,0.80673]
[1750929142186,3.2078,2477.9,2477.8,0.80673]
[1750929142392,4.01449,2477.9,2477.8,0.80673]
[1750929142696,5.06529425,2477.9,2477.8,0.80673]
[1750929143594,5.06532425,2477.9,2477.8,0.80673]
[1750929143797,4.25793245,2477.9,2477.8,0.80673]
[1750929143995,4.01449,2477.9,2477.8,0.80673]
[1750929144199,5.06462189,2477.9,2477.8,0.80673]
[1750929144390,4.01449,2477.9,2477.8,0.80673]
[1750929144591,3.2078,2477.9,2477.8,0.80673]
[1750929145096,4.01426,2478.7,2478.6,0.80647]
[1750929145294,4.01426,2478.7,2478.6,0.41308784]
[1750929145295,4.25828052,2478.7,2478.6,0.41308784]
[1750929145693,1.05048052,2478.7,2478.6,0.41308784]
[1750929145901,8.5925,2479.0,2478.9,0.80637]
[1750929146201,2.46507708,2479.0,2478.9,0.80637]
[1750929146790,1.76247708,2479.0,2478.9,0.80637]
[1750929146999,1.76247708,2479.0,2478.6,1.3041]
[1750929147197,5.24854485,2478.7,2478.2,3.2078]
[1750929147396,5.22407,2478.5,2477.9,1.3041]
[1750929147595,0.80666,2478.1,2478.0,0.80665]
[1750929147796,0.80661,2478.2,2478.1,0.80661]
[1750929147996,1.85239012,2478.2,2478.1,0.80661]
[1750929148297,1.04578012,2478.2,2477.8,3.2078]
[1750929148499,0.80662,2478.2,2477.8,3.2078]
[1750929148698,0.80662,2478.2,2478.1,0.80661]
[1750929148893,1.85234679,2478.2,2478.1,0.80661]
[1750929149201,2.17828,2478.3,2478.2,0.8066]
[1750929149502,3.22397173,2478.3,2478.2,0.8066]
[1750929149793,2.41739173,2478.3,2477.9,1.3041]
[1750929149996,0.80666,2478.1,2478.0,0.80665]
[1750929150197,0.80662,2478.2,2478.1,0.80663]
[1750929150392,1.85205665,2478.2,2478.1,0.80663]
[1750929150588,1.04543665,2478.2,2478.1,0.80663]
[1750929150791,0.7099,2478.3,2478.2,0.8066]
[1750929150991,0.6535,2478.7,2478.6,0.80647]
[1750929151304,2.50541458,2478.7,2478.6,0.80647]
[1750929151695,1.04548458,2478.7,2478.6,0.80647]
[1750929151889,1.85218559,2478.8,2478.5,1.4241]
[1750929152203,1.04577559,2478.7,2478.6,0.80647]
[1750929152503,1.85220559,2478.7,2478.6,0.80647]
[1750929152893,0.80647,2478.6,2478.5,2.23058]
[1750929153100,1.04577559,2478.6,2478.5,2.23058]
[1750929153303,1.04577559,2478.6,2478.5,2.2306]
[1750929153604,0.6668,2478.9,2478.5,2.2306]
[1750929153605,4.01415,2479.0,2478.9,0.80637]
[1750929153794,4.25430713,2479.0,2478.9,0.80637]
[1750929153993,4.25430713,2479.0,2478.5,1.4241]
[1750929154195,0.80645,2478.7,2478.6,0.80644]
[1750929154396,3.2078,2479.0,2478.5,1.4241]
[1750929154597,0.80643,2478.8,2478.7,0.80642]
[1750929154791,1.85301948,2478.8,2478.7,0.80642]
[1750929155106,1.04658948,2478.8,2478.7,0.80642]
[1750929155506,0.80632,2479.1,2479.0,0.80634]
[1750929155710,1.04699041,2479.1,2479.0,0.80634]
[1750929156406,1.85329041,2479.1,2479.0,0.80634]
[1750929156607,0.80637,2479.0,2478.9,0.80635]
[1750929156803,0.8064,2478.8,2478.7,3.2078]
[1750929157007,0.80648,2478.7,2478.6,0.80644]
[1750929157201,1.85347041,2478.7,2478.6,0.80644]
[1750929157395,0.80649,2478.6,2478.5,0.80648]
[1750929157907,0.8066,2478.2,2478.1,3.9116]
[1750929158207,0.8066,2478.2,2478.1,3.2078]
[1750929158403,1.04678935,2478.2,2477.6,3.2078]
[1750929158608,0.80674,2477.8,2477.7,0.80672]
[1750929159009,4.03664,2478.2,2477.9,0.80666]
[1750929159010,0.80668,2478.0,2477.9,0.80666]
[1750929159303,0.80666,2478.0,2477.9,0.80666]
[1750929159511,0.80671,2477.9,2477.8,0.80671]
[1750929159806,0.80673,2477.8,2477.7,2.22984]
[1750929159999,0.80676,2477.7,2477.6,3.2078]
[1750929160804,0.80689,2477.3,2477.2,3.2078]
[1750929161710,0.80689,2477.3,2477.2,4.01472]
[1750929162209,3.8898,2477.6,2477.2,3.2078]
[1750929162406,0.80686,2477.4,2477.3,2.21727]
[1750929162604,3.2078,2477.6,2477.3,1.4104]
[1750929162918,1.85182587,2477.5,2477.4,0.80686]
[1750929163208,1.04500587,2477.5,2477.4,0.80686]
[1750929163604,0.80669,2477.9,2477.8,0.80672]
[1750929163806,12.34117,2478.4,2477.6,6.63517]
[1750929164005,0.80665,2478.1,2478.0,0.80666]
[1750929164204,0.80669,2477.9,2477.8,2.20841]
[1750929164405,1.04678429,2477.9,2477.6,3.2078]
[1750929164606,0.80674,2477.8,2477.6,3.2078]
[1750929164807,0.80666,2478.1,2478.0,0.80665]
[1750929165007,1.04676071,2478.1,2477.7,1.4017]
[1750929165210,0.80673,2477.8,2477.7,2.20843]
[1750929165410,0.80671,2477.9,2477.8,0.8067]
[1750929165609,1.85348864,2477.9,2477.8,0.8067]
[1750929166810,1.04677864,2477.9,2477.8,0.8067]
[1750929167011,1.04677864,2477.9,2477.8,0.80673]
[1750929167218,0.80656,2478.4,2478.3,0.80654]
[1750929167514,0.8066,2478.3,2478.2,0.80658]
[1750929167715,0.8066,2478.2,2478.1,4.01443]
[1750929168017,1.85343202,2478.2,2478.1,4.01443]
[1750929168218,1.04683202,2478.2,2478.1,4.01443]
[1750929168419,0.80657,2478.3,2478.2,0.80656]
[1750929168617,0.80657,2478.3,2478.2,2.14516]
[1750929168816,1.04697405,2478.3,2477.9,0.7208]
[1750929169023,0.80666,2478.0,2477.9,0.80668]
[1750929169212,0.80673,2477.9,2477.8,0.8067]
[1750929169611,3.0631258,2478.0,2477.3,10.3258]
[1750929169812,0.80682,2477.6,2477.5,0.8068]
[1750929170213,0.80682,2477.6,2477.3,11.6644]
[1750929170214,0.80686,2477.5,2477.4,0.80685]
[1750929170608,0.80686,2477.5,2477.4,2.24665]
[1750929170823,0.80686,2477.5,2477.4,2.24666]
[1750929171215,0.80681,2477.6,2477.5,0.80678]
[1750929171715,0.80682,2477.5,2477.4,2.24663]
[1750929172721,0.80682,2477.6,2477.5,0.80679]
[1750929173520,0.80686,2477.4,2477.3,4.01465]
[1750929173924,0.80684,2477.5,2477.4,0.80683]
[1750929174424,0.80686,2477.5,2477.4,0.80686]
[1750929174626,0.80686,2477.4,2477.3,4.01466]
[1750929175026,0.80683,2477.6,2477.5,0.8068]
[1750929175228,0.80686,2477.5,2477.4,0.80683]
[1750929175626,1.85295245,2477.5,2477.4,0.80683]
[1750929176131,0.80686,2477.4,2477.3,4.01467]
[1750929176629,7.24324,2476.8,2476.1,2.13478081]
[1750929176819,10.73157788,2477.4,2475.2,0.23739732]
[1750929176820,8.93937788,2476.2,2475.2,0.23739732]
[1750929177023,88.05127167,2476.7,2474.9,3.2078]
[1750929177024,0.80764,2475.0,2474.9,3.2078]
[1750929177222,0.8078,2474.6,2474.5,3.2078]
[1750929177625,0.80784,2474.4,2474.3,0.29596852]
[1750929178516,0.6648,2475.2,2474.4,0.80783]
[1750929178720,1.04747962,2475.1,2474.5,1.3866]
[1750929178927,3.2078,2475.6,2475.0,3.2078]
[1750929179127,0.80761,2475.1,2475.0,3.2078]
[1750929179322,0.80761,2475.1,2474.4,8.391]
[1750929179323,0.80767,2474.9,2474.8,3.2078]
[1750929179629,0.80777,2474.6,2474.5,4.5785]
[1750929179823,0.80777,2474.6,2474.5,1.3707]
[1750929180020,4.01557,2474.6,2474.5,1.3707]
[1750929180325,3.2078,2472.6,2469.5,3.2078]
[1750929180528,3.2078,2472.6,2469.1,7.9720391]
[1750929180529,3.2078,2469.6,2469.1,7.9720391]
[1750929180833,5.73157788,2471.9,2469.3,3.2078]
[1750929180834,3.2078,2470.1,2469.3,3.2078]
[1750929181020,0.80921,2470.2,2469.9,2.4649084]
[1750929181217,3.2078,2470.5,2469.9,3.2078]
[1750929181428,5.73157788,2470.0,2468.9,3.2078]
[1750929181624,5.73157788,2470.0,2468.7,0.29596852]
[1750929181625,0.80944,2469.5,2469.4,9.56644692]
[1750929181823,3.2078,2469.8,2469.2,4.5785]
[1750929182025,2.02308,2470.2,2469.2,1.3707]
[1750929182026,3.2078,2469.5,2469.2,1.3707]
[1750929182232,0.80967,2468.8,2468.7,9.56645544]
[1750929182424,8.05605207,2469.7,2469.0,0.7435584]
[1750929182626,0.8096,2469.0,2468.9,0.7435584]
[1750929182926,0.80967,2468.8,2468.7,8.52e-06]
[1750929183131,0.80963,2468.9,2468.8,0.7435584]
[1750929183328,0.80949,2469.4,2468.8,12.77424692]
[1750929183524,0.80944,2469.6,2469.4,0.7435584]
[1750929183726,3.2078,2470.1,2469.5,10.431]
[1750929183933,3.2078,2470.3,2469.7,0.7435584]
[1750929184138,3.2078,2470.2,2469.7,10.431]
[1750929184327,3.2078,2470.2,2469.9,0.7435584]
[1750929184629,0.80915,2470.4,2470.1,0.7435584]
[1750929184825,3.2078,2470.5,2470.0,10.37571692]
[1750929185022,3.2078,2470.8,2470.4,10.31000532]
[1750929185225,3.2078,2471.1,2470.5,3.2078]
[1750929185442,3.2078,2471.4,2471.1,0.7435584]
[1750929185631,0.80871,2471.8,2471.1,3.2078]
[1750929185833,0.80869,2471.8,2471.6,0.7435584]
[1750929186032,39.55905207,2473.1,2471.7,23.95380532]
[1750929186228,3.2078,2472.9,2472.7,0.7435584]
[1750929186425,3.2078,2473.0,2472.8,0.7435584]
[1750929186624,0.80832,2472.9,2472.8,0.7435584]
[1750929186838,3.2078,2473.0,2472.6,10.436]
[1750929187033,4.01612,2473.0,2472.8,0.7435584]
[1750929187226,3.2078,2473.0,2472.1,9.56644692]
[1750929187429,3.2078,2472.3,2472.2,10.31000532]
[1750929187725,1.3559,2472.9,2472.2,9.56644692]
[1750929187726,3.2078,2472.6,2472.2,9.56644692]
[1750929187926,3.2078,2472.3,2471.8,10.436]
[1750929188128,3.2078,2472.6,2471.9,9.56644692]
[1750929188332,3.2078,2472.6,2472.5,0.7435584]
[1750929188626,3.2078,2472.6,2472.5,10.31000532]
[1750929188832,3.2078,2472.7,2472.5,0.7435584]
[1750929189031,3.2078,2472.7,2472.6,0.7435584]
[1750929189232,4.78064949,2472.7,2472.6,0.7435584]
[1750929189635,1.57284949,2472.7,2472.6,20.74800532]
[1750929189833,1.57284949,2472.7,2472.6,10.31000532]
[1750929190038,1.57284949,2472.7,2472.6,20.74800532]
[1750929190243,1.57284949,2472.7,2472.6,21.55642532]
[1750929190438,1.57284949,2472.7,2472.6,20.74800532]
[1750929190941,1.57284949,2472.7,2472.6,21.55642532]
[1750929191735,1.57284949,2472.7,2472.6,26.55642532]
[1750929192432,3.2078,2473.1,2472.6,25.74800532]
[1750929192634,3.2078,2473.1,2473.0,9.56644692]
[1750929192836,4.76981241,2473.1,2473.0,11.11829532]
[1750929193231,3.2078,2473.4,2473.1,0.80826]
[1750929193430,1.56304418,2473.3,2473.2,11.24621]
[1750929193645,1.56304418,2473.3,2473.2,20.00444692]
[1750929193940,1.56304418,2473.3,2473.2,21.55623532]
[1750929195132,1.56304418,2473.3,2473.2,26.55623532]
[1750929195334,3.2078,2473.7,2473.2,25.74800532]
[1750929195531,3.2078,2473.7,2473.6,1.5516584]
[1750929195834,3.2078,2473.7,2473.2,11.1805584]
[1750929196033,3.2078,2473.7,2473.0,3.2078]
[1750929196034,3.2078,2473.3,2472.2,2.02138]
[1750929196241,2.35808254,2473.4,2473.1,1.5517884]
[1750929196442,3.2078,2473.2,2473.1,0.80823]
[1750929196736,3.2078,2473.2,2473.0,0.80828]
[1750929196933,4.01603,2473.2,2473.1,0.7435584]
[1750929197335,3.2078,2473.2,2473.1,10.31000532]
[1750929197532,4.01603,2473.2,2473.1,10.31000532]
[1750929197736,3.2078,2473.2,2473.0,0.80829]
[1750929198043,4.01606,2473.2,2473.0,10.31000532]
[1750929198343,0.80826,2473.1,2473.0,10.31000532]
[1750929198538,6.37413254,2473.2,2473.0,10.31000532]
[1750929198740,5.56588254,2473.2,2473.0,11.11828532]
[1750929199040,0.80826,2473.1,2473.0,10.31000532]
[1750929199539,5.56588254,2473.2,2472.1,3.2078]
[1750929199739,3.2078,2472.6,2472.5,0.80846]
[1750929200144,3.2078,2472.6,2472.5,16.11846532]
[1750929200941,6.37419254,2473.0,2472.5,17.33111532]
[1750929201238,6.37419254,2473.0,2472.9,0.80832]
[1750929201444,4.01611,2473.0,2472.9,21.55632532]
[1750929201848,4.01611,2473.0,2472.9,20.74800532]
[1750929202033,4.01611,2473.0,2472.9,20.00444692]
[1750929202238,0.80842,2472.6,2472.5,0.80846]
[1750929202441,2.32069644,2472.6,2472.5,11.24646]
[1750929202639,2.32069644,2472.6,2472.5,21.55646532]
[1750929202847,0.80841,2472.7,2472.6,0.80842]
[1750929203043,0.80839,2472.7,2472.6,10.31000532]
[1750929203233,3.17148554,2472.9,2472.6,10.31000532]
[1750929203439,0.80836,2472.8,2472.7,10.31000532]
[1750929203642,0.80849,2472.4,2472.3,9.56644692]
[1750929203845,3.10449775,2472.7,2472.6,1.5519784]
[1750929204042,0.80846,2472.5,2472.4,0.80847]
[1750929204346,7.10651946,2473.1,2472.6,10.31000532]
[1750929204544,7.10651946,2473.1,2473.0,0.21789773]
[1750929204746,0.80844,2472.6,2472.5,0.80844]
[1750929204947,7.12785114,2472.6,2472.5,0.80844]
[1750929205148,4.01624,2472.6,2472.5,11.15274465]
[1750929205450,0.80849,2472.4,2472.3,11.24651]
[1750929205846,0.80849,2472.4,2472.3,21.03085465]
[1750929206036,7.09686239,2472.6,2472.3,21.03085465]
[1750929206343,4.69754239,2472.5,2472.4,10.59281465]
[1750929206549,0.80848,2472.5,2472.4,10.59281465]
[1750929206741,0.80848,2472.5,2472.4,1.02636773]
[1750929206946,4.01624,2472.6,2472.5,0.80846]
[1750929207450,0.80848,2472.5,2472.4,0.80847]
[1750929207650,1.52894761,2472.5,2471.9,48.61158]
[1750929207837,3.2078,2472.1,2471.0,4.04469]
[1750929208044,3.2078,2471.8,2471.7,1.02661773]
[1750929208348,4.7372934,2471.8,2471.7,1.02661773]
[1750929208545,5.5459734,2471.8,2471.7,1.02661773]
[1750929208741,2.3381734,2471.8,2471.7,1.02661773]
[1750929208944,4.7372934,2471.8,2471.6,10.438]
[1750929209250,0.80879,2471.5,2471.4,11.24678]
[1750929209443,4.01649,2471.8,2471.7,0.80872]
[1750929209647,4.82604779,2471.8,2471.7,0.80872]
[1750929210337,1.61824779,2471.8,2471.7,0.80872]
[1750929210742,1.61824779,2471.8,2471.4,11.62234443]
[1750929210953,3.92160437,2471.5,2471.4,12.43116443]
[1750929211141,5.53985216,2471.5,2471.4,12.43116443]
[1750929211352,5.53985216,2471.5,2471.4,0.80882]
[1750929211651,2.42702779,2471.5,2471.4,0.80882]
[1750929211851,1.61824779,2471.5,2471.0,10.44]
[1750929212046,3.92390535,2471.3,2471.0,10.44]
[1750929212247,2.42715779,2471.2,2471.1,0.80888]
[1750929212448,7.10849391,2471.2,2471.1,0.80888]
[1750929212750,7.91737391,2471.2,2471.1,0.80888]
[1750929212954,7.91737391,2471.2,2470.8,48.61652]
[1750929212955,0.80895,2471.0,2470.9,10.156]
[1750929213250,2.42719779,2471.0,2470.9,10.96498]
[1750929213448,2.42719779,2471.0,2470.2,2.02299]
[1750929213449,1.61824779,2471.0,2470.2,2.02299]
[1750929213651,1.333,2471.4,2470.8,0.80901]
[1750929213652,1.61824779,2470.9,2470.8,0.80901]
[1750929213952,7.13290934,2470.9,2470.8,0.80901]
[1750929214152,7.13290934,2470.9,2470.8,0.41446439]
[1750929214755,1.61824779,2470.9,2470.6,3.30655857]
[1750929214948,5.52117971,2470.9,2470.8,0.80901]
[1750929215148,6.94972865,2470.9,2470.8,0.80901]
[1750929215347,6.94972865,2470.9,2470.8,5.80901]
[1750929215553,3.2078,2471.4,2471.3,0.80885]
[1750929216056,0.80896,2471.0,2470.7,1.3035]
[1750929216254,3.2078,2471.0,2470.9,0.80898]
[1750929216558,0.809,2470.9,2470.8,0.809]
[1750929216746,0.809,2470.9,2470.6,10.158]
[1750929216950,4.75130278,2470.9,2470.6,10.158]
[1750929217152,0.80903,2470.8,2470.7,0.80902]
[1750929217348,4.75130278,2470.9,2470.8,0.80901]
[1750929217862,3.94230278,2470.9,2470.8,0.80901]
[1750929218050,4.75128278,2470.9,2470.8,0.80901]
[1750929218247,5.29070278,2470.9,2470.3,5.23068]
[1750929218446,3.15058602,2470.6,2470.5,0.80911]
[1750929219054,0.20354841,2470.6,2470.5,5.80911]
[1750929219252,7.15010278,2471.0,2470.9,0.80898]
[1750929219449,3.2078,2471.0,2470.9,0.80898]
[1750929219851,7.95906278,2471.0,2470.9,0.80898]
[1750929220058,0.809,2470.9,2470.8,0.80899]
[1750929220257,4.01677,2471.0,2470.9,0.80898]
[1750929220458,4.519,2471.0,2470.9,0.80898]
[1750929220960,8.46130278,2471.0,2470.9,0.80898]
[1750929221156,9.27025278,2471.0,2470.9,0.80898]
[1750929221553,4.519,2471.0,2470.9,0.80898]
[1750929221868,3.94230278,2471.1,2471.0,0.80895]
[1750929222154,3.94230278,2471.7,2471.0,2.02234]
[1750929222363,3.2078,2471.6,2471.5,0.80878]
[1750929222748,4.01655,2471.6,2471.5,0.80878]
[1750929222949,8.2078,2471.6,2470.8,46.616]
[1750929223159,0.80889,2471.2,2471.1,0.80889]
[1750929223458,3.2078,2471.3,2470.8,46.616]
[1750929223652,0.80894,2471.1,2471.0,0.80894]
[1750929223859,0.80895,2471.0,2470.9,0.80897]
[1750929224058,4.5556,2471.3,2470.9,0.41443533]
[1750929224249,4.5556,2471.3,2470.8,47.42499]
[1750929224250,4.01677,2471.0,2470.8,47.42499]
[1750929224451,3.2078,2471.0,2470.9,0.80898]
[1750929224958,3.2078,2471.0,2470.5,5.23056]
[1750929225153,2.36127902,2470.6,2470.5,3.2078]
[1750929225345,2.36127902,2470.6,2470.5,4.01691]
[1750929225551,2.36127902,2470.7,2470.6,0.80908]
[1750929225958,2.36127902,2470.7,2470.6,5.80908]
[1750929227455,3.62993641,2470.7,2470.6,5.80908]
[1750929227856,3.62993641,2470.7,2470.6,0.80908]
[1750929228058,1.26865739,2470.7,2470.6,0.80908]
[1750929229358,1.26865739,2470.7,2470.6,5.80908]
[1750929229565,3.63386621,2470.7,2470.6,5.80908]
[1750929229754,1.26865739,2470.7,2470.6,5.80908]
[1750929230162,1.26865739,2470.7,2470.6,15.63708]
[1750929230355,3.63477612,2470.7,2470.6,18.84488]
[1750929230555,1.26865739,2470.7,2470.6,48.91888]
[1750929230763,3.63477612,2470.7,2470.6,18.84488]
[1750929231368,1.26865739,2470.7,2470.6,18.84488]
[1750929232068,1.26865739,2470.7,2470.6,9.01688]
[1750929232364,1.26865739,2470.7,2470.6,18.84488]
[1750929233167,0.18285739,2470.7,2470.6,18.84488]
[1750929233363,2.36611873,2471.0,2470.9,0.80898]
[1750929233665,2.36611873,2471.1,2471.0,0.80895]
[1750929233866,2.36611873,2471.2,2471.1,0.80891]
[1750929234162,6.36029643,2471.5,2470.9,13.0358]
[1750929234368,2.37191711,2471.1,2470.9,13.0358]
[1750929234571,2.37191711,2471.2,2471.1,0.80891]
[1750929235366,4.01659,2471.5,2471.0,2.02238]
[1750929235568,2.37408554,2471.3,2471.0,2.02238]
[1750929235759,2.37408554,2471.3,2471.2,0.80888]
[1750929236461,2.37408554,2471.4,2471.3,0.80885]
[1750929236662,6.39068554,2471.5,2471.4,0.80882]
[1750929236959,5.58188554,2471.5,2470.9,13.0358]
[1750929237164,2.37408554,2471.3,2470.8,0.6837]
[1750929237364,4.39631554,2471.2,2470.7,0.672]
[1750929237664,0.80901,2470.8,2470.7,1.481]
[1750929237870,0.80904,2470.7,2470.6,0.80905]
[1750929238165,3.2078,2470.9,2470.7,0.80902]
[1750929238364,3.2078,2470.9,2470.4,15.05863]
[1750929238561,0.80909,2470.6,2470.5,0.80908]
[1750929239055,1.3892,2470.8,2470.1,3.8915]
[1750929239261,0.80918,2470.4,2470.3,0.80914]
[1750929239469,0.80921,2470.3,2470.2,0.80919]
[1750929239867,0.80925,2470.1,2469.6,13.0368]
[1750929240166,5.23077,2470.3,2469.6,13.0368]
[1750929240355,3.2078,2470.0,2469.9,0.80931]
[1750929240560,15.41088554,2470.6,2469.9,3.2078]
[1750929240760,3.43401,2470.5,2469.9,3.2078]
[1750929240961,3.2078,2470.3,2469.8,0.80932]
[1750929241157,3.2078,2470.0,2469.5,3.2078]
[1750929241360,1.4112,2469.9,2469.3,9.829]
[1750929241571,2.37408554,2470.5,2469.8,3.2078]
[1750929241759,5.58188554,2470.6,2469.8,15.0601]
[1750929242060,3.2078,2470.6,2470.5,0.80911]
[1750929242266,0.80913,2470.5,2470.3,0.80918]
[1750929242463,0.80911,2470.5,2470.3,0.80918]
[1750929242668,4.619,2470.6,2470.4,0.80914]
[1750929242863,3.2078,2470.6,2470.3,0.80915]
[1750929243161,0.80918,2470.3,2469.8,13.0368]
[1750929243373,4.01699,2470.3,2469.8,15.06013]
[1750929243575,3.2078,2470.3,2470.2,0.80921]
[1750929243765,4.017,2470.3,2469.8,13.0368]
[1750929243969,5.4152,2470.3,2469.8,15.06012]
[1750929244268,4.606,2470.3,2469.8,3.2078]
[1750929244569,6.62897,2470.3,2469.6,9.503]
[1750929244757,3.2078,2470.0,2469.6,9.503]
[1750929244961,0.80936,2469.8,2469.6,10.31238]
[1750929245171,1.3982,2469.9,2469.7,0.80936]
[1750929245364,1.91992049,2469.8,2469.7,0.80936]
[1750929245567,1.11058049,2469.8,2469.7,4.01716]
[1750929245873,3.2078,2470.3,2470.2,0.80921]
[1750929246063,4.31771293,2470.3,2470.2,0.80921]
[1750929246867,3.2078,2470.9,2470.2,2.02303]
[1750929247168,3.2078,2470.6,2470.0,3.2078]
[1750929247467,0.80923,2470.2,2470.1,0.80923]
[1750929247673,1.91878542,2470.2,2470.1,0.80923]
[1750929247871,2.53155542,2470.2,2469.6,3.2078]
[1750929248064,4.01708,2470.0,2469.9,0.80929]
[1750929248263,3.2078,2470.0,2469.5,9.504]
[1750929248469,0.8094,2469.7,2469.6,0.8094]
[1750929248868,0.80936,2469.8,2469.3,2.02371]
[1750929249158,2.23132,2469.9,2469.8,0.80934]
[1750929249473,1.422,2469.9,2469.8,0.80934]
[1750929249667,3.2078,2470.0,2469.9,0.80931]
[1750929250867,3.2078,2470.0,2469.9,2.17911]
[1750929251070,1.3265,2470.3,2470.2,0.80921]
[1750929251363,3.2078,2470.4,2470.3,0.80918]
[1750929251565,1.3265,2470.6,2470.5,0.80911]
[1750929251770,4.01682,2470.8,2470.7,0.80904]
[1750929251972,4.5343,2470.8,2470.7,0.80904]
[1750929253074,5.34331,2470.8,2470.7,0.80904]
[1750929253575,3.2078,2470.8,2470.7,0.80904]
[1750929254174,4.31361761,2470.8,2470.7,0.80904]
[1750929254572,0.80906,2470.7,2470.3,9.505]
[1750929254772,1.4149,2470.6,2470.5,0.80911]
[1750929255274,2.5204652,2470.6,2470.5,0.80911]
[1750929255572,1.4149,2470.6,2470.5,0.80911]
[1750929255878,3.2078,2470.8,2470.7,0.80904]
[1750929256078,5.12244394,2470.8,2470.7,0.80904]
[1750929256378,6.53584394,2470.8,2470.7,0.80904]
[1750929256671,0.80908,2470.7,2470.4,9.504]
[1750929256878,2.22249,2470.6,2470.5,0.80911]
[1750929257072,3.2078,2470.8,2470.7,0.80904]
[1750929257272,4.31351992,2470.8,2470.7,0.80904]
[1750929257472,5.72691992,2470.8,2470.7,0.80904]
[1750929258275,3.2078,2470.8,2470.7,0.80904]
[1750929258583,3.2078,2471.1,2471.0,0.80895]
[1750929258879,4.31382433,2471.1,2471.0,0.80895]
[1750929259079,5.12273433,2471.1,2471.0,0.80895]
[1750929259473,0.809,2470.9,2470.8,9.504]
[1750929259779,0.809,2470.9,2470.8,10.31299]
[1750929260780,1.3368,2471.0,2470.9,0.80898]
[1750929260976,3.2078,2471.1,2470.8,9.504]
[1750929261182,3.2078,2471.1,2471.0,0.80895]
[1750929261374,0.80897,2471.0,2470.9,0.80896]
[1750929261677,0.80902,2470.9,2470.8,0.809]
[1750929261878,2.14137,2471.0,2470.9,0.80898]
[1750929262079,1.3324,2471.0,2470.9,0.80898]
[1750929262784,0.80901,2470.9,2470.8,0.809]
[1750929263483,0.80902,2470.8,2470.7,0.80902]
[1750929263677,1.3324,2471.0,2470.6,9.177]
[1750929263880,0.80903,2470.8,2470.7,0.80904]
[1750929264076,0.80904,2470.7,2470.6,9.98605]
[1750929264381,0.80902,2470.9,2470.8,0.809]
[1750929264581,0.80904,2470.8,2470.7,0.80902]
[1750929264881,0.80914,2470.5,2470.4,0.80913]
[1750929265081,4.01691,2470.5,2470.4,9.176]
[1750929265285,4.01691,2470.5,2470.4,9.98514]
[1750929265980,4.31275169,2470.5,2469.9,12.3838]
[1750929266182,0.8092,2470.3,2470.2,0.80919]
[1750929267087,0.80917,2470.4,2470.3,0.80915]
[1750929267289,0.8092,2470.3,2470.2,0.80919]
[1750929267884,0.80916,2470.4,2470.3,0.80914]
[1750929268084,1.91468048,2470.4,2470.3,0.80914]
[1750929268285,3.2078,2470.5,2470.4,0.80914]
[1750929268684,0.80909,2470.6,2470.2,5.23082]
[1750929268894,0.80912,2470.5,2470.4,0.80911]
[1750929269188,1.92210933,2470.6,2470.5,0.80911]
[1750929269482,1.11306021,2470.6,2470.5,0.80911]
[1750929270282,4.01682,2470.8,2470.7,0.80904]
[1750929270488,4.32087854,2470.8,2470.6,0.80905]
[1750929270691,3.2078,2470.8,2470.7,0.80904]
[1750929270892,0.80907,2470.7,2470.6,0.80905]
[1750929271094,0.80912,2470.5,2470.4,0.80911]
[1750929271285,0.80912,2470.5,2470.4,9.98611]
[1750929271584,0.80909,2470.6,2470.5,0.80908]
[1750929271777,1.92232805,2470.6,2470.5,0.80908]
[1750929272392,1.11323805,2470.6,2470.5,0.80908]
[1750929272885,4.01682,2470.8,2470.7,0.80904]
[1750929273085,5.13005783,2470.8,2470.7,0.80904]
[1750929273587,5.13004783,2470.8,2470.7,0.80904]
[1750929273983,4.32103783,2470.8,2470.7,0.80904]
[1750929274991,3.2078,2471.1,2471.0,0.80895]
[1750929275180,1.11325681,2471.1,2471.0,9.98595]
[1750929275887,3.2078,2471.4,2471.3,0.80885]
[1750929276084,4.32135823,2471.4,2471.3,0.80885]
[1750929277096,3.8607,2471.8,2471.6,0.80872]
[1750929277290,0.80875,2471.6,2471.5,9.177]
[1750929277481,1.11294137,2471.6,2471.2,0.80886]
[1750929277687,0.80882,2471.4,2471.3,8.861]
[1750929277888,0.80886,2471.3,2471.2,0.80888]
[1750929278191,0.80883,2471.4,2471.3,0.80883]
[1750929278391,1.11294553,2471.4,2471.3,0.80883]
[1750929278690,1.11294553,2471.4,2471.3,9.66983]
[1750929278887,1.11294553,2471.4,2471.2,0.80886]
[1750929279090,0.80884,2471.4,2471.3,8.86]
[1750929279392,1.92217183,2471.4,2471.3,8.86]
[1750929279887,1.92217183,2471.4,2471.3,9.66885]
[1750929280388,1.11335183,2471.4,2471.3,9.66885]
[1750929280692,1.92217183,2471.4,2471.3,9.66885]
[1750929280890,0.80888,2471.3,2471.2,0.80885]
[1750929281084,1.92223183,2471.3,2471.2,9.66885]